[Event "Late-Titled-Tuesday-Blitz-June-04-2024"]
[Site "Chess.com"]
[Date "2024.06.04"]
[Round "4"]
[White "Itay121"]
[Black "Zorbos"]
[Result "1/2-1/2"]
[WhiteElo "2540"]
[BlackElo "2719"]
[TimeControl "180+1"]
[EndTime "14:39:52 PDT"]
[Termination "Game drawn - insufficient material"]

1. e4 {[%clk 0:03:00.9]} 1... c6 {[%clk 0:03:00.8]} 2. d4 {[%clk 0:03:00.1]}
2... d5 {[%clk 0:03:01.7]} 3. f3 {[%clk 0:03:00.5]} 3... g6 {[%clk 0:02:59.1]}
4. Nc3 {[%clk 0:02:59.9]} 4... Bg7 {[%clk 0:02:55.1]} 5. Be3 {[%clk 0:02:59.3]}
5... dxe4 {[%clk 0:02:29.3]} 6. fxe4 {[%clk 0:02:58.9]} 6... e5 {[%clk
0:02:29.9]} 7. Nf3 {[%clk 0:02:44.1]} 7... exd4 {[%clk 0:02:29.3]} 8. Bxd4
{[%clk 0:02:44.2]} 8... Bxd4 {[%clk 0:02:25.1]} 9. Qxd4 {[%clk 0:02:42]} 9...
Qxd4 {[%clk 0:02:24.8]} 10. Nxd4 {[%clk 0:02:42.9]} 10... Ne7 {[%clk 0:02:25.6]}
11. O-O-O {[%clk 0:02:41.3]} 11... O-O {[%clk 0:02:26]} 12. h4 {[%clk
0:02:38.7]} 12... Nd7 {[%clk 0:02:26.3]} 13. h5 {[%clk 0:02:38.1]} 13... Ne5
{[%clk 0:02:26.6]} 14. hxg6 {[%clk 0:02:37.8]} 14... hxg6 {[%clk 0:02:26]} 15.
Be2 {[%clk 0:02:37]} 15... Kg7 {[%clk 0:02:25.2]} 16. Nf3 {[%clk 0:02:32.9]}
16... Nxf3 {[%clk 0:02:05.2]} 17. gxf3 {[%clk 0:02:29.9]} 17... Be6 {[%clk
0:02:01.1]} 18. b3 {[%clk 0:02:25.3]} 18... Rh8 {[%clk 0:02:00.8]} 19. Kb2
{[%clk 0:02:25.1]} 19... Rxh1 {[%clk 0:01:58.9]} 20. Rxh1 {[%clk 0:02:24.5]}
20... Rd8 {[%clk 0:01:59.6]} 21. Bd3 {[%clk 0:02:21.2]} 21... g5 {[%clk
0:01:56.2]} 22. Ne2 {[%clk 0:02:18.6]} 22... Ng6 {[%clk 0:01:54.8]} 23. Kc3
{[%clk 0:02:07.3]} 23... Kf6 {[%clk 0:01:38.8]} 24. Kd2 {[%clk 0:01:52.1]} 24...
c5 {[%clk 0:01:16.9]} 25. Ke3 {[%clk 0:01:49.5]} 25... Ne5 {[%clk 0:01:17.2]}
26. f4 {[%clk 0:01:32.2]} 26... gxf4+ {[%clk 0:01:18.1]} 27. Nxf4 {[%clk
0:01:30.9]} 27... Rg8 {[%clk 0:01:08.1]} 28. Rh6+ {[%clk 0:01:22.4]} 28... Kg7
{[%clk 0:00:39.6]} 29. Rh5 {[%clk 0:01:21.5]} 29... Kf6 {[%clk 0:00:39.6]} 30.
Rh6+ {[%clk 0:01:19.4]} 30... Ke7 {[%clk 0:00:38.7]} 31. Kd2 {[%clk 0:01:07.4]}
31... Rg4 {[%clk 0:00:28]} 32. Nxe6 {[%clk 0:01:01.4]} 32... fxe6 {[%clk
0:00:28.9]} 33. Rh7+ {[%clk 0:00:58.5]} 33... Nf7 {[%clk 0:00:28.9]} 34. Kc3
{[%clk 0:00:57.7]} 34... Kf6 {[%clk 0:00:20.8]} 35. a4 {[%clk 0:00:52.3]} 35...
b6 {[%clk 0:00:19.1]} 36. e5+ {[%clk 0:00:47.4]} 36... Nxe5 {[%clk 0:00:15.5]}
37. Rxa7 {[%clk 0:00:47.8]} 37... Rg7 {[%clk 0:00:11.4]} 38. Rxg7 {[%clk
0:00:35.2]} 38... Kxg7 {[%clk 0:00:12.3]} 39. b4 {[%clk 0:00:35.7]} 39... Kf6
{[%clk 0:00:01.4]} 40. bxc5 {[%clk 0:00:26.1]} 40... bxc5 {[%clk 0:00:02.3]} 41.
a5 {[%clk 0:00:26.6]} 41... Ke7 {[%clk 0:00:02.9]} 42. Kb3 {[%clk 0:00:20.5]}
42... Kd6 {[%clk 0:00:01.6]} 43. Ka4 {[%clk 0:00:20.6]} 43... Kc7 {[%clk
0:00:02.1]} 44. Kb5 {[%clk 0:00:20.5]} 44... Nd7 {[%clk 0:00:02.8]} 45. Bc4
{[%clk 0:00:19.7]} 45... e5 {[%clk 0:00:03.1]} 46. Be6 {[%clk 0:00:19.6]} 46...
e4 {[%clk 0:00:03.2]} 47. Kc4 {[%clk 0:00:14.1]} 47... e3 {[%clk 0:00:02.8]} 48.
Kd3 {[%clk 0:00:14.7]} 48... Ne5+ {[%clk 0:00:03.1]} 49. Kxe3 {[%clk 0:00:14.5]}
49... Nc6 {[%clk 0:00:03.2]} 50. a6 {[%clk 0:00:13.5]} 50... Kb6 {[%clk
0:00:03.7]} 51. Bc4 {[%clk 0:00:13.4]} 51... Na5 {[%clk 0:00:04.2]} 52. Be2
{[%clk 0:00:12.4]} 52... c4 {[%clk 0:00:05.1]} 53. Kd4 {[%clk 0:00:13]} 53...
Kxa6 {[%clk 0:00:05.5]} 54. Bxc4+ {[%clk 0:00:13.5]} 54... Kb6 {[%clk
0:00:06.2]} 55. Bd5 {[%clk 0:00:12.4]} 55... Kb5 {[%clk 0:00:03.4]} 56. c3
{[%clk 0:00:10.3]} 56... Kb6 {[%clk 0:00:03.3]} 57. Kd3 {[%clk 0:00:07.8]} 57...
Kc5 {[%clk 0:00:03.3]} 58. Bg8 {[%clk 0:00:07]} 58... Nc6 {[%clk 0:00:03.1]} 59.
Kc2 {[%clk 0:00:07]} 59... Na5 {[%clk 0:00:03.4]} 60. Kb2 {[%clk 0:00:07.2]}
60... Nc6 {[%clk 0:00:03.8]} 61. Kb3 {[%clk 0:00:07.3]} 61... Ne5 {[%clk
0:00:04.3]} 62. Be6 {[%clk 0:00:06.7]} 62... Nc6 {[%clk 0:00:04.5]} 63. Bf5
{[%clk 0:00:06.8]} 63... Na5+ {[%clk 0:00:04.9]} 64. Kc2 {[%clk 0:00:07.2]}
64... Nc6 {[%clk 0:00:05.8]} 65. Kd3 {[%clk 0:00:06.8]} 65... Na5 {[%clk
0:00:06.1]} 66. Be6 {[%clk 0:00:06.9]} 66... Nc6 {[%clk 0:00:06.2]} 67. Ba2
{[%clk 0:00:06.9]} 67... Na5 {[%clk 0:00:05.9]} 68. Ke4 {[%clk 0:00:06.3]} 68...
Nc6 {[%clk 0:00:05.8]} 69. Bd5 {[%clk 0:00:06.7]} 69... Nb4 {[%clk 0:00:05.6]}
70. c4 {[%clk 0:00:06.2]} 70... Nc2 {[%clk 0:00:05]} 71. Kd3 {[%clk 0:00:05.1]}
71... Na3 {[%clk 0:00:05.9]} 72. Kc3 {[%clk 0:00:04]} 72... Nxc4 {[%clk
0:00:06.8]} 1/2-1/2

[Event "Late-Titled-Tuesday-Blitz-June-04-2024"]
[Site "Chess.com"]
[Date "2024.06.04"]
[Round "4"]
[White "Oleg_Papayan"]
[Black "kingofthenil"]
[Result "1/2-1/2"]
[WhiteElo "2569"]
[BlackElo "2878"]
[TimeControl "180+1"]
[EndTime "14:39:52 PDT"]
[Termination "Game drawn by repetition"]

1. e4 {[%clk 0:03:00.9]} 1... Nc6 {[%clk 0:02:58.6]} 2. Nf3 {[%clk 0:03:00.5]}
2... d5 {[%clk 0:02:59.1]} 3. exd5 {[%clk 0:03:01.2]} 3... Qxd5 {[%clk
0:02:59.8]} 4. Nc3 {[%clk 0:03:01.1]} 4... Qh5 {[%clk 0:03:00.4]} 5. Nb5 {[%clk
0:03:01.5]} 5... Kd8 {[%clk 0:02:59.6]} 6. d4 {[%clk 0:03:00.7]} 6... Bg4 {[%clk
0:02:59.6]} 7. Bf4 {[%clk 0:02:59.3]} 7... a6 {[%clk 0:02:57]} 8. Nxc7 {[%clk
0:02:56.8]} 8... Rc8 {[%clk 0:02:55.7]} 9. d5 {[%clk 0:02:55.2]} 9... Bxf3
{[%clk 0:02:56.1]} 10. Qxf3 {[%clk 0:02:51.1]} 10... Qxf3 {[%clk 0:02:55.8]} 11.
gxf3 {[%clk 0:02:52]} 11... Nd4 {[%clk 0:02:56.4]} 12. O-O-O {[%clk 0:02:20.6]}
12... Nxf3 {[%clk 0:02:55.5]} 13. d6 {[%clk 0:01:37.8]} 13... exd6 {[%clk
0:02:52.9]} 14. Nd5 {[%clk 0:01:33]} 14... Nf6 {[%clk 0:02:41.3]} 15. Nxf6
{[%clk 0:01:31]} 15... gxf6 {[%clk 0:02:41.9]} 16. Bg2 {[%clk 0:01:05.4]} 16...
Ne5 {[%clk 0:02:37.3]} 17. Bxb7 {[%clk 0:01:05.4]} 17... Rc4 {[%clk 0:02:32.7]}
18. Bxe5 {[%clk 0:00:51.2]} 18... fxe5 {[%clk 0:02:33.6]} 19. Bxa6 {[%clk
0:00:51.6]} 19... Ra4 {[%clk 0:02:32.2]} 20. Bb5 {[%clk 0:00:42.6]} 20... Rxa2
{[%clk 0:02:32]} 21. Kb1 {[%clk 0:00:43.2]} 21... Ra7 {[%clk 0:02:24.5]} 22. c4
{[%clk 0:00:42.8]} 22... Rg8 {[%clk 0:02:10.1]} 23. f4 {[%clk 0:00:41.5]} 23...
exf4 {[%clk 0:02:06.7]} 24. Rhf1 {[%clk 0:00:35.2]} 24... Rg4 {[%clk 0:02:04.3]}
25. Rd4 {[%clk 0:00:30.9]} 25... Bg7 {[%clk 0:01:32.9]} 26. Rdxf4 {[%clk
0:00:31.4]} 26... Rxf4 {[%clk 0:01:29.4]} 27. Rxf4 {[%clk 0:00:32.3]} 27... Re7
{[%clk 0:01:29.4]} 28. Rg4 {[%clk 0:00:24.5]} 28... Bf6 {[%clk 0:01:20.6]} 29.
Rg8+ {[%clk 0:00:22.8]} 29... Kc7 {[%clk 0:01:13.4]} 30. Re8 {[%clk 0:00:23.7]}
30... Re5 {[%clk 0:00:50.6]} 31. Rxe5 {[%clk 0:00:21.1]} 31... Bxe5 {[%clk
0:00:50.8]} 32. h3 {[%clk 0:00:18.6]} 32... Kb6 {[%clk 0:00:49.1]} 33. Be8
{[%clk 0:00:19]} 33... f5 {[%clk 0:00:48.9]} 34. Kc2 {[%clk 0:00:18.1]} 34...
Kc5 {[%clk 0:00:48.6]} 35. Kd3 {[%clk 0:00:17.7]} 35... Bxb2 {[%clk 0:00:48.1]}
36. Bd7 {[%clk 0:00:17.4]} 36... f4 {[%clk 0:00:48.1]} 37. Be6 {[%clk
0:00:14.5]} 37... Bc1 {[%clk 0:00:43.9]} 38. Ke4 {[%clk 0:00:14.6]} 38... Be3
{[%clk 0:00:39.8]} 39. Kf3 {[%clk 0:00:14]} 39... Kd4 {[%clk 0:00:39.5]} 40. Bd5
{[%clk 0:00:14]} 40... Ke5 {[%clk 0:00:39.3]} 41. Bg8 {[%clk 0:00:13.3]} 41...
h6 {[%clk 0:00:33.2]} 42. Bd5 {[%clk 0:00:13.8]} 42... Kf5 {[%clk 0:00:33.2]}
43. Bg8 {[%clk 0:00:13.7]} 43... Kg5 {[%clk 0:00:33.4]} 44. Be6 {[%clk
0:00:13.9]} 44... Kh4 {[%clk 0:00:32.9]} 45. Bd7 {[%clk 0:00:14.1]} 45... Bc1
{[%clk 0:00:33.8]} 46. Be6 {[%clk 0:00:14.4]} 46... Kg5 {[%clk 0:00:34.7]} 47.
Bd7 {[%clk 0:00:14.2]} 47... Kf6 {[%clk 0:00:35.6]} 48. Bc6 {[%clk 0:00:14.2]}
48... Ke5 {[%clk 0:00:36.5]} 49. Bd5 {[%clk 0:00:14.6]} 49... Kd4 {[%clk
0:00:37.2]} 50. Bf7 {[%clk 0:00:15.2]} 50... Ke5 {[%clk 0:00:33]} 51. Bd5 {[%clk
0:00:16.1]} 51... Ba3 {[%clk 0:00:33.3]} 52. Bf7 {[%clk 0:00:16.2]} 52... Bc5
{[%clk 0:00:34]} 53. Bd5 {[%clk 0:00:17]} 53... Be3 {[%clk 0:00:34.4]} 54. Bg8
{[%clk 0:00:17.6]} 54... Kf5 {[%clk 0:00:35.3]} 55. Bd5 {[%clk 0:00:18.5]} 55...
Kg5 {[%clk 0:00:36.2]} 56. Be6 {[%clk 0:00:18.6]} 56... Bc1 {[%clk 0:00:35.7]}
57. Bd7 {[%clk 0:00:18.5]} 57... Kf6 {[%clk 0:00:36.4]} 58. Bc6 {[%clk
0:00:18.3]} 58... Ke6 {[%clk 0:00:35.5]} 59. Bd5+ {[%clk 0:00:18.8]} 59... Kf5
{[%clk 0:00:36.4]} 60. Bg8 {[%clk 0:00:19.2]} 60... Kg5 {[%clk 0:00:37.3]} 61.
Be6 {[%clk 0:00:19.6]} 61... Kh4 {[%clk 0:00:37.5]} 62. Bf5 {[%clk 0:00:19.3]}
62... Bd2 {[%clk 0:00:36.5]} 63. Be6 {[%clk 0:00:19.8]} 63... Be3 {[%clk
0:00:32.3]} 64. Bf5 {[%clk 0:00:19.9]} 64... h5 {[%clk 0:00:32.9]} 65. Be6
{[%clk 0:00:19.6]} 65... Kg5 {[%clk 0:00:33.8]} 66. Bf7 {[%clk 0:00:19.8]} 66...
Bd2 {[%clk 0:00:31.8]} 67. Be8 {[%clk 0:00:19.8]} 67... Bc1 {[%clk 0:00:31.5]}
68. Bf7 {[%clk 0:00:20]} 68... Bb2 {[%clk 0:00:31.6]} 69. Be8 {[%clk 0:00:20.3]}
69... Be5 {[%clk 0:00:31.3]} 70. Bf7 {[%clk 0:00:20.6]} 70... Kh4 {[%clk
0:00:30]} 71. Be8 {[%clk 0:00:20.3]} 71... Kg5 {[%clk 0:00:25.8]} 72. Bf7 {[%clk
0:00:20.4]} 72... h4 {[%clk 0:00:25]} 73. Bd5 {[%clk 0:00:20.1]} 73... Bc3
{[%clk 0:00:25.9]} 74. Bg8 {[%clk 0:00:20.2]} 74... Be1 {[%clk 0:00:26.8]} 75.
Bd5 {[%clk 0:00:20.8]} 75... Bg3 {[%clk 0:00:27.4]} 76. Bg8 {[%clk 0:00:21.1]}
76... Kf6 {[%clk 0:00:28.3]} 77. Bd5 {[%clk 0:00:21.9]} 77... Ke5 {[%clk
0:00:29.2]} 78. Bg8 {[%clk 0:00:22.4]} 78... Kd4 {[%clk 0:00:30.1]} 79. Bd5
{[%clk 0:00:23.3]} 79... Kc5 {[%clk 0:00:31]} 80. Be6 {[%clk 0:00:23.7]} 80...
Kb4 {[%clk 0:00:31.9]} 81. Bd5 {[%clk 0:00:24.3]} 81... Ka5 {[%clk 0:00:32.8]}
82. Be6 {[%clk 0:00:25]} 82... Kb6 {[%clk 0:00:33.7]} 83. Bd5 {[%clk 0:00:25.7]}
83... Kc7 {[%clk 0:00:34.6]} 84. Be6 {[%clk 0:00:25.9]} 84... Kd8 {[%clk
0:00:35.5]} 85. Bd5 {[%clk 0:00:26.5]} 85... Ke7 {[%clk 0:00:36.4]} 86. Ke4
{[%clk 0:00:27]} 86... Kf8 {[%clk 0:00:37.3]} 87. Kf3 {[%clk 0:00:27.6]} 87...
Kg7 {[%clk 0:00:38]} 88. Ke4 {[%clk 0:00:28.2]} 88... Kf6 {[%clk 0:00:38.9]} 89.
Kf3 {[%clk 0:00:29.1]} 89... Ke7 {[%clk 0:00:39.6]} 90. Ke4 {[%clk 0:00:29.6]}
90... Kd7 {[%clk 0:00:40.5]} 91. Kf3 {[%clk 0:00:30.5]} 91... Kc7 {[%clk
0:00:41.4]} 92. Ke4 {[%clk 0:00:31.3]} 92... Kb6 {[%clk 0:00:42.3]} 93. Kf3
{[%clk 0:00:32.2]} 93... Kc5 {[%clk 0:00:43.2]} 94. Ke4 {[%clk 0:00:33.1]} 94...
Kb4 {[%clk 0:00:43.7]} 95. Kf3 {[%clk 0:00:34]} 95... Kc3 {[%clk 0:00:44.4]} 96.
Ke4 {[%clk 0:00:34.9]} 96... Kd2 {[%clk 0:00:45.2]} 97. Kf3 {[%clk 0:00:35.8]}
97... Kd3 {[%clk 0:00:45.8]} 98. Be6 {[%clk 0:00:35.6]} 98... Kd4 {[%clk
0:00:46.5]} 99. Bd5 {[%clk 0:00:36.1]} 99... Kd3 {[%clk 0:00:47]} 100. Bg8
{[%clk 0:00:36.8]} 100... Kd2 {[%clk 0:00:47.2]} 101. Bd5 {[%clk 0:00:37.7]}
101... Ke1 {[%clk 0:00:48]} 102. Bg8 {[%clk 0:00:38.5]} 102... Kf1 {[%clk
0:00:48.9]} 103. Bd5 {[%clk 0:00:37.7]} 103... Kg1 {[%clk 0:00:49.5]} 104. Be6
{[%clk 0:00:37.7]} 104... Kh2 {[%clk 0:00:50.2]} 105. Bf5 {[%clk 0:00:37.9]}
105... Kg1 {[%clk 0:00:48.4]} 106. Be6 {[%clk 0:00:38.3]} 106... Kf1 {[%clk
0:00:48.9]} 107. Bf5 {[%clk 0:00:38.8]} 107... Ke1 {[%clk 0:00:49.7]} 108. Be6
{[%clk 0:00:39.4]} 108... Kd2 {[%clk 0:00:50.4]} 109. Bd5 {[%clk 0:00:40]}
1/2-1/2

[Event "Late-Titled-Tuesday-Blitz-June-04-2024"]
[Site "Chess.com"]
[Date "2024.06.04"]
[Round "4"]
[White "ChEsper99"]
[Black "sailorknight"]
[Result "1/2-1/2"]
[WhiteElo "2226"]
[BlackElo "1863"]
[TimeControl "180+1"]
[EndTime "14:39:54 PDT"]
[Termination "Game drawn - insufficient material"]

1. d4 {[%clk 0:03:00]} 1... Nf6 {[%clk 0:02:59.4]} 2. c4 {[%clk 0:02:59.6]} 2...
e6 {[%clk 0:02:59.9]} 3. Nc3 {[%clk 0:02:58.3]} 3... Bb4 {[%clk 0:03:00.4]} 4.
Bd2 {[%clk 0:02:50.5]} 4... O-O {[%clk 0:02:58.6]} 5. e3 {[%clk 0:02:49.5]} 5...
Bxc3 {[%clk 0:02:57.9]} 6. Bxc3 {[%clk 0:02:49.4]} 6... Ne4 {[%clk 0:02:58.5]}
7. Rc1 {[%clk 0:02:48.8]} 7... d6 {[%clk 0:02:57.4]} 8. Bd3 {[%clk 0:02:48.2]}
8... Nxc3 {[%clk 0:02:56.4]} 9. Rxc3 {[%clk 0:02:48]} 9... Qe7 {[%clk
0:02:56.1]} 10. Ne2 {[%clk 0:02:40.5]} 10... b6 {[%clk 0:02:56.1]} 11. O-O
{[%clk 0:02:39.4]} 11... c5 {[%clk 0:02:54.6]} 12. Be4 {[%clk 0:02:22.3]} 12...
Bb7 {[%clk 0:02:54.3]} 13. Bxb7 {[%clk 0:02:22.5]} 13... Qxb7 {[%clk 0:02:54.1]}
14. dxc5 {[%clk 0:02:13.8]} 14... dxc5 {[%clk 0:02:48.9]} 15. Rd3 {[%clk
0:02:12.8]} 15... Qe4 {[%clk 0:02:27.7]} 16. b3 {[%clk 0:02:07.1]} 16... Na6
{[%clk 0:02:27.3]} 17. Nc3 {[%clk 0:02:06.2]} 17... Qe5 {[%clk 0:02:20.9]} 18.
a3 {[%clk 0:01:52.7]} 18... h5 {[%clk 0:02:14.2]} 19. Qd2 {[%clk 0:01:52.1]}
19... h4 {[%clk 0:02:13.3]} 20. h3 {[%clk 0:01:52.3]} 20... Qg5 {[%clk
0:02:02.4]} 21. Rd1 {[%clk 0:01:47.8]} 21... Nc7 {[%clk 0:01:54.5]} 22. e4
{[%clk 0:01:31.4]} 22... Qxd2 {[%clk 0:01:52.3]} 23. R1xd2 {[%clk 0:01:32.3]}
23... Ne8 {[%clk 0:01:44.2]} 24. e5 {[%clk 0:01:07.8]} 24... g6 {[%clk
0:01:41.2]} 25. Ne4 {[%clk 0:01:05.6]} 25... Ng7 {[%clk 0:01:36.2]} 26. Nf6+
{[%clk 0:01:02.3]} 26... Kh8 {[%clk 0:01:36.5]} 27. g4 {[%clk 0:00:57.7]} 27...
hxg3 {[%clk 0:01:34.7]} 28. fxg3 {[%clk 0:00:58]} 28... Nf5 {[%clk 0:01:35.1]}
29. Kg2 {[%clk 0:00:46.3]} 29... Nd4 {[%clk 0:01:33.3]} 30. Rxd4 {[%clk
0:00:40.8]} 30... cxd4 {[%clk 0:01:32.1]} 31. Rxd4 {[%clk 0:00:41.7]} 31... Kg7
{[%clk 0:01:26.1]} 32. Ne4 {[%clk 0:00:20.1]} 32... Rad8 {[%clk 0:01:21.7]} 33.
Nd6 {[%clk 0:00:20.4]} 33... f6 {[%clk 0:01:20.1]} 34. exf6+ {[%clk 0:00:20.1]}
34... Kxf6 {[%clk 0:01:19.8]} 35. b4 {[%clk 0:00:17.3]} 35... Ke7 {[%clk
0:01:18.6]} 36. c5 {[%clk 0:00:16.7]} 36... bxc5 {[%clk 0:01:17.6]} 37. bxc5
{[%clk 0:00:17.6]} 37... Rd7 {[%clk 0:01:17.9]} 38. Rg4 {[%clk 0:00:14.6]} 38...
Rg8 {[%clk 0:01:13]} 39. Kf3 {[%clk 0:00:12.9]} 39... Rxd6 {[%clk 0:01:12.7]}
40. cxd6+ {[%clk 0:00:13.1]} 40... Kxd6 {[%clk 0:01:13.3]} 41. Ra4 {[%clk
0:00:13.4]} 41... Rg7 {[%clk 0:01:12.5]} 42. Ra6+ {[%clk 0:00:13]} 42... Kd5
{[%clk 0:01:11.2]} 43. Ke3 {[%clk 0:00:12.6]} 43... e5 {[%clk 0:01:08.7]} 44.
Ra5+ {[%clk 0:00:09.5]} 44... Kd6 {[%clk 0:01:04.5]} 45. Ke4 {[%clk 0:00:09.4]}
45... Rc7 {[%clk 0:00:42]} 46. Ra6+ {[%clk 0:00:08.6]} 46... Kd7 {[%clk
0:00:36.9]} 47. Rxg6 {[%clk 0:00:08.7]} 47... Rc3 {[%clk 0:00:34.8]} 48. h4
{[%clk 0:00:05.8]} 48... Rxa3 {[%clk 0:00:34.2]} 49. h5 {[%clk 0:00:06.2]} 49...
Ra1 {[%clk 0:00:29.7]} 50. h6 {[%clk 0:00:05.4]} 50... a5 {[%clk 0:00:28.6]} 51.
g4 {[%clk 0:00:02.3]} 51... Rh1 {[%clk 0:00:25.6]} 52. g5 {[%clk 0:00:01.9]}
52... a4 {[%clk 0:00:25.3]} 53. Ra6 {[%clk 0:00:02.3]} 53... Rh5 {[%clk
0:00:22.9]} 54. Kf5 {[%clk 0:00:02.1]} 54... e4 {[%clk 0:00:22.9]} 55. Kg6
{[%clk 0:00:01.9]} 55... Rh4 {[%clk 0:00:19.8]} 56. Rxa4 {[%clk 0:00:02.1]}
56... Ke6 {[%clk 0:00:16.7]} 57. Kg7 {[%clk 0:00:02.6]} 57... Rg4 {[%clk
0:00:13.2]} 58. h7 {[%clk 0:00:02.5]} 58... Rxg5+ {[%clk 0:00:12]} 59. Kh6
{[%clk 0:00:03.1]} 59... Rg1 {[%clk 0:00:07.8]} 60. h8=Q {[%clk 0:00:03.4]}
60... Rh1+ {[%clk 0:00:06.8]} 61. Kg7 {[%clk 0:00:04]} 61... Rxh8 {[%clk
0:00:07.1]} 62. Kxh8 {[%clk 0:00:04.6]} 62... Kf5 {[%clk 0:00:06.7]} 63. Kg7
{[%clk 0:00:04.2]} 63... Kf4 {[%clk 0:00:05.5]} 64. Kf6 {[%clk 0:00:04.2]} 64...
Kf3 {[%clk 0:00:05.1]} 65. Ke5 {[%clk 0:00:04.2]} 65... e3 {[%clk 0:00:05.7]}
66. Kd4 {[%clk 0:00:03.6]} 66... e2 {[%clk 0:00:05.3]} 67. Ra1 {[%clk 0:00:02]}
67... Kf2 {[%clk 0:00:04.2]} 68. Kd3 {[%clk 0:00:01.9]} 68... e1=Q {[%clk
0:00:02.5]} 69. Rxe1 {[%clk 0:00:02.6]} 69... Kxe1 {[%clk 0:00:02.9]} 1/2-1/2

[Event "Late-Titled-Tuesday-Blitz-June-04-2024"]
[Site "Chess.com"]
[Date "2024.06.04"]
[Round "4"]
[White "Alina_Gumerovna"]
[Black "familijatop71"]
[Result "0-1"]
[WhiteElo "2110"]
[BlackElo "2295"]
[TimeControl "180+1"]
[EndTime "14:40:02 PDT"]
[Termination "familijatop71 won by checkmate"]

1. e4 {[%clk 0:02:59.7]} 1... d5 {[%clk 0:03:00]} 2. exd5 {[%clk 0:02:59.6]}
2... Qxd5 {[%clk 0:03:00.9]} 3. Nc3 {[%clk 0:02:59.6]} 3... Qa5 {[%clk
0:03:00.9]} 4. d4 {[%clk 0:02:58.3]} 4... c6 {[%clk 0:03:00.8]} 5. Bc4 {[%clk
0:02:57.4]} 5... Bf5 {[%clk 0:02:57.2]} 6. Ne2 {[%clk 0:02:57.1]} 6... e6 {[%clk
0:02:54.8]} 7. O-O {[%clk 0:02:56.3]} 7... Nd7 {[%clk 0:02:53.1]} 8. Bd2 {[%clk
0:02:52.1]} 8... Qc7 {[%clk 0:02:42.6]} 9. Bf4 {[%clk 0:02:50]} 9... Bd6 {[%clk
0:02:38.6]} 10. Bxd6 {[%clk 0:02:50.7]} 10... Qxd6 {[%clk 0:02:38.3]} 11. Ng3
{[%clk 0:02:51.6]} 11... Bg6 {[%clk 0:02:38.5]} 12. h4 {[%clk 0:02:51.3]} 12...
h5 {[%clk 0:02:28.3]} 13. Nce4 {[%clk 0:02:50.6]} 13... Qc7 {[%clk 0:02:05.9]}
14. f4 {[%clk 0:02:41.5]} 14... Ne7 {[%clk 0:01:57.3]} 15. Ng5 {[%clk
0:02:22.1]} 15... Nf5 {[%clk 0:01:49.3]} 16. Nxf5 {[%clk 0:01:55.4]} 16... Bxf5
{[%clk 0:01:49.1]} 17. Qe2 {[%clk 0:01:42.1]} 17... Bg4 {[%clk 0:01:42.5]} 18.
Qe3 {[%clk 0:01:40.1]} 18... Nb6 {[%clk 0:01:31.9]} 19. Bb3 {[%clk 0:01:37.1]}
19... Nd5 {[%clk 0:01:25.9]} 20. Bxd5 {[%clk 0:01:36.8]} 20... cxd5 {[%clk
0:01:25.5]} 21. Rac1 {[%clk 0:01:34.2]} 21... b5 {[%clk 0:01:19.3]} 22. b3
{[%clk 0:01:29.8]} 22... O-O {[%clk 0:01:06.2]} 23. c4 {[%clk 0:01:21.5]} 23...
bxc4 {[%clk 0:01:03.3]} 24. bxc4 {[%clk 0:01:20.1]} 24... dxc4 {[%clk
0:00:58.5]} 25. Rc3 {[%clk 0:00:55.7]} 25... a5 {[%clk 0:00:40.2]} 26. Rfc1
{[%clk 0:00:54.6]} 26... Rfc8 {[%clk 0:00:36.9]} 27. Kf2 {[%clk 0:00:42]} 27...
Rab8 {[%clk 0:00:29.6]} 28. Rxc4 {[%clk 0:00:20.6]} 28... Qxc4 {[%clk
0:00:25.9]} 29. Rxc4 {[%clk 0:00:19.6]} 29... Rxc4 {[%clk 0:00:26.8]} 30. Qd3
{[%clk 0:00:19.8]} 30... Rb2+ {[%clk 0:00:16.3]} 31. Kg3 {[%clk 0:00:19.4]}
31... Rcc2 {[%clk 0:00:09.8]} 32. Qh7+ {[%clk 0:00:08.9]} 32... Kf8 {[%clk
0:00:10.2]} 33. Qe4 {[%clk 0:00:03.2]} 33... Rxg2+ {[%clk 0:00:08.3]} 34. Qxg2
{[%clk 0:00:02.5]} 34... Rxg2+ {[%clk 0:00:08]} 35. Kxg2 {[%clk 0:00:03.4]}
35... Ke7 {[%clk 0:00:08.2]} 36. Kf2 {[%clk 0:00:03.6]} 36... f6 {[%clk
0:00:08.7]} 37. Ne4 {[%clk 0:00:02.5]} 37... Bf5 {[%clk 0:00:07.7]} 38. Ng3
{[%clk 0:00:02.4]} 38... g6 {[%clk 0:00:05.7]} 39. a3 {[%clk 0:00:01.9]} 39...
Kd6 {[%clk 0:00:05.9]} 40. Ke3 {[%clk 0:00:02.8]} 40... Kd5 {[%clk 0:00:06.2]}
41. Ne2 {[%clk 0:00:03.2]} 41... e5 {[%clk 0:00:04.4]} 42. dxe5 {[%clk
0:00:02.3]} 42... fxe5 {[%clk 0:00:05]} 43. fxe5 {[%clk 0:00:03.2]} 43... Kxe5
{[%clk 0:00:05.5]} 44. Nd4 {[%clk 0:00:03.6]} 44... Kd5 {[%clk 0:00:04.8]} 45.
Ne2 {[%clk 0:00:02.8]} 45... Bc2 {[%clk 0:00:04.4]} 46. Nd4 {[%clk 0:00:02]}
46... Bf5 {[%clk 0:00:03.6]} 47. Nb5 {[%clk 0:00:02.1]} 47... Kc5 {[%clk
0:00:03.5]} 48. Nd4 {[%clk 0:00:02.6]} 48... Kc4 {[%clk 0:00:03.8]} 49. Nxf5
{[%clk 0:00:01.8]} 49... gxf5 {[%clk 0:00:03.8]} 50. Kf4 {[%clk 0:00:02.7]}
50... Kb3 {[%clk 0:00:04.3]} 51. Kxf5 {[%clk 0:00:03.6]} 51... Kxa3 {[%clk
0:00:04.9]} 52. Kg5 {[%clk 0:00:04.3]} 52... Kb3 {[%clk 0:00:04.2]} 53. Kxh5
{[%clk 0:00:05.2]} 53... a4 {[%clk 0:00:05.1]} 54. Kg6 {[%clk 0:00:04.8]} 54...
a3 {[%clk 0:00:06]} 55. h5 {[%clk 0:00:03.1]} 55... a2 {[%clk 0:00:06.9]} 56. h6
{[%clk 0:00:03.2]} 56... a1=Q {[%clk 0:00:07.8]} 57. Kh7 {[%clk 0:00:02.7]}
57... Qa7+ {[%clk 0:00:07.4]} 58. Kh8 {[%clk 0:00:02]} 58... Qb8+ {[%clk
0:00:07.6]} 59. Kh7 {[%clk 0:00:02.7]} 59... Qc7+ {[%clk 0:00:08.3]} 60. Kh8
{[%clk 0:00:03.5]} 60... Qd8+ {[%clk 0:00:08.8]} 61. Kh7 {[%clk 0:00:03.6]}
61... Qe7+ {[%clk 0:00:09.2]} 62. Kg8 {[%clk 0:00:03.7]} 62... Qg5+ {[%clk
0:00:07.5]} 63. Kh7 {[%clk 0:00:03.3]} 63... Kc4 {[%clk 0:00:07.3]} 64. Kh8
{[%clk 0:00:03.8]} 64... Qf6+ {[%clk 0:00:05.5]} 65. Kg8 {[%clk 0:00:04.7]}
65... Qg6+ {[%clk 0:00:05.3]} 66. Kh8 {[%clk 0:00:03]} 66... Qxh6+ {[%clk
0:00:05.5]} 67. Kg8 {[%clk 0:00:03.9]} 67... Kd5 {[%clk 0:00:05]} 68. Kf7 {[%clk
0:00:04.8]} 68... Qe6+ {[%clk 0:00:04.5]} 69. Kg7 {[%clk 0:00:05.7]} 69... Kd6
{[%clk 0:00:04.3]} 70. Kf8 {[%clk 0:00:06.1]} 70... Qd7 {[%clk 0:00:04.4]} 71.
Kg8 {[%clk 0:00:06.7]} 71... Ke6 {[%clk 0:00:05.3]} 72. Kh8 {[%clk 0:00:07.6]}
72... Kf6 {[%clk 0:00:05.8]} 73. Kg8 {[%clk 0:00:08.5]} 73... Qg7# {[%clk
0:00:06.2]} 0-1